bitfinex-derivatives/quotes_BTCF0:USTF0_20241008
["timestamp","ask_amount","ask_price","bid_price","bid_amount"]
[1728399172332,0.083752,62716.0,62715.0,0.080753]
[1728399174943,0.083752,62716.0,62715.0,0.001]
[1728399175942,0.083752,62716.0,62715.0,0.080753]
[1728399178353,0.083752,62716.0,62715.0,0.001]
[1728399178553,0.083752,62716.0,62715.0,0.080753]
[1728399180147,0.004,62716.0,62715.0,0.080753]
[1728399180449,0.079734,62733.0,62732.0,0.07973]
[1728399181849,0.004,62733.0,62732.0,0.080732]
[1728399184252,0.079712,62749.0,62748.0,0.079709]
[1728399185761,0.080712,62749.0,62748.0,0.080709]
[1728399187045,0.080712,62749.0,62748.0,0.001]
[1728399188249,0.080712,62749.0,62748.0,0.080711]
[1728399188645,0.0533,62759.0,62748.0,0.001]
[1728399188845,0.079712,62749.0,62748.0,0.08071]
[1728399189047,0.079712,62749.0,62748.0,0.001]
[1728399189948,0.079712,62747.0,62746.0,0.3608]
[1728399190154,0.079712,62747.0,62746.0,0.440514]
[1728399190960,0.079712,62747.0,62746.0,0.3608]
[1728399192646,0.079712,62747.0,62746.0,0.3618]
[1728399195062,0.079712,62747.0,62746.0,0.441514]
[1728399195250,0.079712,62747.0,62746.0,0.641514]
[1728399195446,0.079706,62755.0,62754.0,0.079701]
[1728399195654,0.079706,62755.0,62754.0,0.440501]
[1728399196658,0.079706,62755.0,62754.0,0.441501]
[1728399197859,0.10181028,62757.0,62756.0,0.079701]
[1728399197860,0.02211028,62757.0,62756.0,0.079701]
[1728399198063,0.02211028,62757.0,62754.0,0.641501]
[1728399198064,0.079697,62761.0,62760.0,0.079694]
[1728399198454,0.08057841,62767.0,62760.0,0.3608]
[1728399198659,0.02267841,62767.0,62766.0,0.440488]
[1728399198963,0.079677,62776.0,62775.0,0.079674]
[1728399199168,0.079677,62776.0,62775.0,0.640474]
[1728399199952,0.079677,62776.0,62775.0,0.5608]
[1728399200351,0.079677,62776.0,62775.0,0.3608]
[1728399202156,0.079687,62767.0,62766.0,0.36192]
[1728399202360,0.079687,62767.0,62766.0,0.3608]
[1728399202954,0.079687,62767.0,62760.0,0.3608]
[1728399203161,0.079695,62761.0,62760.0,0.3608]
[1728399204160,0.079695,62761.0,62760.0,0.5608]
[1728399204474,0.079695,62761.0,62760.0,0.9216]
[1728399205158,0.079695,62761.0,62760.0,0.3608]
[1728399205664,0.079695,62761.0,62760.0,0.3678]
[1728399206265,0.079695,62761.0,62760.0,0.3608]
[1728399206468,0.079695,62761.0,62760.0,0.3668]
[1728399208465,0.079695,62761.0,62760.0,0.3618]
[1728399209265,0.079695,62761.0,62760.0,0.3608]
[1728399210570,0.079698,62761.0,62760.0,0.079695]
[1728399210765,0.079698,62761.0,62760.0,0.279695]
[1728399211777,0.079698,62761.0,62757.0,0.00238997]
[1728399211974,0.079699,62758.0,62757.0,0.00238997]
[1728399212164,0.079699,62758.0,62757.0,0.08208997]
[1728399212365,0.079694,62763.0,62762.0,0.079692]
[1728399212571,0.079694,62763.0,62762.0,0.440492]
[1728399212873,0.079695,62761.0,62760.0,0.002]
[1728399213375,0.079699,62758.0,62757.0,0.00738997]
[1728399215082,0.079699,62758.0,62757.0,0.00238997]
[1728399216075,0.079699,62758.0,62757.0,0.00438997]
[1728399216876,0.079699,62758.0,62757.0,0.00238997]
[1728399217083,0.079699,62758.0,62757.0,0.00738997]
[1728399217272,0.079699,62758.0,62757.0,0.08708997]
[1728399218666,0.079699,62758.0,62757.0,0.08608997]
[1728399219778,0.079693,62763.0,62760.0,0.079693]
[1728399219779,0.079695,62761.0,62760.0,0.079693]
[1728399220781,0.079695,62761.0,62760.0,0.279693]
[1728399221377,0.00239042,62780.0,62760.0,0.2]
[1728399221677,0.079686,62768.0,62767.0,0.3608]
[1728399221876,0.079686,62768.0,62767.0,0.440487]
[1728399222975,0.079686,62768.0,62767.0,0.801287]
[1728399224194,0.079686,62768.0,62767.0,0.7216]
[1728399224783,0.079686,62768.0,62767.0,0.3608]
[1728399225576,0.079686,62768.0,62757.0,0.41093181]
[1728399225577,0.079699,62758.0,62757.0,0.36318997]
[1728399226088,0.079696,62762.0,62757.0,0.56318997]
[1728399226281,0.079696,62762.0,62761.0,0.279693]
[1728399226684,0.079696,62762.0,62757.0,0.56318997]
[1728399226983,0.079699,62758.0,62757.0,0.36318997]
[1728399228280,0.079699,62758.0,62757.0,0.36918997]
[1728399229283,0.079699,62758.0,62757.0,0.36818997]
[1728399229988,0.079699,62758.0,62757.0,0.36718997]
[1728399230883,1.357739,62758.0,62751.0,0.3608]
[1728399231085,1.357739,62758.0,62745.0,0.3608]
[1728399231086,0.079714,62746.0,62745.0,0.3608]
[1728399231282,0.279714,62746.0,62745.0,0.3608]
[1728399232378,0.279714,62746.0,62745.0,0.3708]
[1728399232696,0.079714,62746.0,62745.0,0.3708]
[1728399233184,0.079714,62746.0,62745.0,0.450515]
[1728399234486,0.079712,62749.0,62748.0,0.079709]
[1728399234688,0.079707,62752.0,62751.0,0.079704]
[1728399235184,0.079693,62763.0,62762.0,0.079693]
[1728399235381,0.079688,62767.0,62766.0,0.079688]
[1728399235884,0.07969,62766.0,62765.0,0.079689]
[1728399237077,0.2,62771.0,62762.0,0.3608]
[1728399237375,0.079672,62779.0,62770.0,0.5608]
[1728399237586,0.079674,62777.0,62776.0,0.3608]
[1728399238685,0.079674,62777.0,62776.0,0.440476]
[1728399239581,0.079674,62777.0,62776.0,0.441476]
[1728399240286,0.079674,62777.0,62776.0,0.3618]
[1728399240488,0.079691,62764.0,62763.0,0.36204]
[1728399240788,0.079691,62764.0,62763.0,0.440492]
[1728399241480,0.079691,62764.0,62763.0,0.3608]
[1728399241684,0.2,62767.0,62757.0,0.00238954]
[1728399241987,0.079699,62758.0,62757.0,0.00238954]
[1728399242484,0.079714,62746.0,62745.0,0.3608]
[1728399244892,0.079714,62746.0,62738.0,0.0023907]
[1728399245189,0.079723,62739.0,62738.0,0.0023907]
[1728399246479,0.080723,62739.0,62738.0,0.0023907]
[1728399246788,1.07916,62739.0,62722.0,0.3608]
[1728399246980,0.079743,62723.0,62722.0,0.3608]
[1728399247584,0.079743,62723.0,62722.0,0.640544]
[1728399247788,0.079739,62727.0,62726.0,0.079738]
[1728399247992,0.079735,62731.0,62730.0,0.079734]
[1728399248184,0.079735,62731.0,62730.0,0.279734]
[1728399249292,0.079738,62727.0,62726.0,0.011]
[1728399249496,0.279738,62727.0,62726.0,0.011]
[1728399250687,0.079738,62727.0,62726.0,0.011]
[1728399251291,0.2,62730.0,62725.0,0.3608]
[1728399251492,0.079739,62726.0,62725.0,0.5608]
[1728399251693,0.079739,62726.0,62725.0,0.44054]
[1728399252096,0.079739,62726.0,62725.0,0.3608]
[1728399252694,0.079739,62726.0,62719.0,0.079748]
[1728399252695,0.079747,62720.0,62719.0,0.079748]
[1728399254894,0.079751,62717.0,62716.0,0.3608]
[1728399255098,0.079751,62717.0,62716.0,0.440552]
[1728399255303,0.079751,62717.0,62716.0,0.3608]
[1728399255800,0.079751,62717.0,62711.0,0.08214971]
[1728399256103,0.079757,62712.0,62711.0,0.08214971]
[1728399256296,0.079757,62712.0,62711.0,0.00239171]
[1728399256799,0.079757,62712.0,62711.0,0.08214971]
[1728399256995,0.079755,62714.0,62713.0,0.079753]
[1728399258688,0.2,62719.0,62713.0,0.3608]
[1728399258891,0.079747,62720.0,62719.0,0.079748]
[1728399260400,0.079739,62728.0,62727.0,0.079735]
[1728399260701,0.2,62740.0,62732.0,0.079732]
[1728399261003,0.079726,62736.0,62732.0,0.079732]
[1728399261196,0.2,62740.0,62732.0,0.079732]
[1728399261391,0.08212215,62733.0,62732.0,0.079732]
[1728399262195,0.08212215,62733.0,62732.0,0.10720902]
[1728399262590,0.08212215,62733.0,62732.0,0.11420902]
[1728399263498,0.08212215,62733.0,62732.0,0.11220902]
[1728399263703,0.00239215,62733.0,62732.0,0.11220902]
[1728399264203,0.08212215,62733.0,62732.0,0.11220902]
[1728399264804,0.00239215,62733.0,62732.0,0.11220902]
[1728399265802,0.08212215,62733.0,62732.0,0.11220902]
[1728399266202,0.28212215,62733.0,62732.0,0.03247702]
[1728399266499,0.079737,62728.0,62727.0,0.00124]
[1728399266701,0.279737,62728.0,62725.0,0.02733198]
[1728399266904,0.079739,62726.0,62716.0,0.3608]
[1728399267199,0.279751,62719.0,62718.0,0.079748]
[1728399267395,0.079751,62719.0,62718.0,0.079748]
[1728399267591,0.079751,62719.0,62718.0,0.440548]
[1728399267795,0.079751,62717.0,62716.0,0.02743098]
[1728399267996,0.079757,62713.0,62712.0,0.079756]
[1728399268195,0.079757,62713.0,62711.0,0.36319171]
[1728399268196,0.079757,62712.0,62711.0,0.00239171]
[1728399268391,0.440557,62712.0,62711.0,0.00239171]
[1728399268801,0.079772,62700.0,62699.0,0.3608]
[1728399268997,0.079781,62693.0,62692.0,0.3608]
[1728399269192,0.279781,62693.0,62692.0,0.3608]
[1728399269897,0.079784,62691.0,62686.0,0.08540472]
[1728399270101,0.079784,62691.0,62690.0,0.079785]
[1728399271602,0.079789,62687.0,62686.0,0.10759372]
[1728399271903,0.079789,62687.0,62686.0,0.02780472]
[1728399272117,0.079784,62691.0,62685.0,0.440591]
[1728399272296,0.079798,62682.0,62681.0,0.079795]
[1728399273404,0.079791,62685.0,62680.0,0.079798]
[1728399273595,0.079791,62685.0,62684.0,0.079793]
[1728399275601,0.079795,62682.0,62681.0,0.014]
[1728399276107,0.079795,62682.0,62681.0,0.3748]
[1728399276309,0.079795,62682.0,62681.0,0.3608]
[1728399276811,0.079795,62682.0,62681.0,0.440596]
[1728399277007,0.079795,62682.0,62681.0,0.3608]
[1728399277204,0.079798,62680.0,62679.0,0.0277331]
[1728399277409,0.02390701,62680.0,62679.0,0.440599]
[1728399277712,0.3,62683.0,62679.0,0.440599]
[1728399277912,0.079798,62680.0,62679.0,0.440599]
[1728399278305,0.079798,62680.0,62679.0,0.3608]
[1728399278610,0.079803,62676.0,62675.0,0.079803]
[1728399279199,0.079805,62674.0,62673.0,0.38901876]
[1728399279504,0.079805,62674.0,62673.0,0.46882576]
[1728399279700,0.079805,62674.0,62673.0,0.38901876]
[1728399280106,0.079805,62674.0,62673.0,0.3608]
[1728399281207,0.001,62676.0,62675.0,0.079804]
[1728399281208,0.080803,62676.0,62675.0,0.079804]
[1728399281802,0.3608,62679.0,62673.0,0.3748]
[1728399282009,0.440599,62679.0,62678.0,0.0798]
[1728399282315,0.440599,62679.0,62673.0,0.3748]
[1728399282316,0.079794,62683.0,62675.0,0.04774184]
[1728399282617,0.079798,62681.0,62680.0,0.079793]
[1728399283216,0.079793,62685.0,62684.0,0.079792]
[1728399283720,0.079795,62682.0,62681.0,0.079795]
[1728399283909,0.079795,62682.0,62681.0,0.12753684]
[1728399284105,0.079795,62682.0,62681.0,0.079795]
[1728399284408,0.079795,62682.0,62681.0,0.12753684]
[1728399284709,0.079795,62682.0,62681.0,0.15475868]
[1728399285617,0.079795,62682.0,62681.0,0.10701684]
[1728399285804,0.079795,62682.0,62681.0,0.16275868]
[1728399286011,0.079795,62682.0,62681.0,0.11501684]
[1728399286012,0.080795,62682.0,62681.0,0.11501684]
[1728399286313,0.080795,62682.0,62681.0,0.087795]
[1728399286813,0.380795,62682.0,62681.0,0.008]
[1728399289616,0.40923414,62682.0,62681.0,0.008]
[1728399290414,0.380795,62682.0,62681.0,0.008]
[1728399292518,1.459395,62682.0,62681.0,0.008]
[1728399293017,1.459395,62682.0,62668.0,0.00239322]
[1728399293018,0.079812,62669.0,62668.0,0.00239322]
[1728399293214,0.079812,62669.0,62668.0,0.04985507]
[1728399293414,0.079812,62669.0,62668.0,0.00239322]
[1728399294420,0.079812,62669.0,62668.0,0.07977279]
[1728399294421,0.080812,62669.0,62668.0,0.07977279]
[1728399295120,0.080812,62669.0,62668.0,0.01639322]
[1728399295618,0.001,62669.0,62668.0,0.17577595]
[1728399295916,0.079805,62675.0,62668.0,0.23357188]
[1728399296105,0.079805,62675.0,62674.0,0.440602]
[1728399296306,0.079796,62682.0,62681.0,0.079793]
[1728399296512,0.079796,62682.0,62681.0,0.28082242]
[1728399296715,0.079796,62682.0,62681.0,0.28082147]
[1728399296922,0.079796,62682.0,62681.0,0.20140712]
[1728399298417,0.079796,62682.0,62681.0,0.20140193]
[1728399298922,0.079796,62682.0,62681.0,0.20640193]
[1728399299518,0.079796,62682.0,62681.0,0.3019256]
[1728399300625,0.079796,62682.0,62681.0,0.20640564]
[1728399300812,0.079796,62682.0,62681.0,0.20140564]
[1728399301013,0.080796,62682.0,62681.0,0.20840564]
[1728399301615,0.080796,62682.0,62681.0,0.30395041]
[1728399301823,0.080796,62682.0,62681.0,0.30295041]
[1728399302025,0.080796,62682.0,62681.0,0.56820564]
[1728399302217,0.080796,62682.0,62681.0,0.58398246]
[1728399302414,0.080796,62682.0,62677.0,0.09557706]
[1728399302415,1.159396,62682.0,62677.0,0.09557706]
[1728399302620,1.159396,62682.0,62668.0,0.00239322]
[1728399302621,0.079812,62669.0,62668.0,0.00239322]
[1728399302811,0.079812,62669.0,62668.0,0.15043766]
[1728399302812,0.3,62669.0,62668.0,0.15043766]
[1728399303017,0.379812,62669.0,62668.0,0.15043766]
[1728399303215,0.379812,62669.0,62668.0,0.00239322]
[1728399303919,0.079813,62668.0,62667.0,0.440613]
[1728399305321,0.07982,62664.0,62661.0,0.02823816]
[1728399305522,0.07982,62664.0,62660.0,0.0548]
[1728399305523,0.03988546,62664.0,62663.0,0.3608]
[1728399305718,0.079822,62661.0,62657.0,0.3608]
[1728399306023,0.379826,62658.0,62657.0,0.3608]
[1728399306221,0.379826,62658.0,62657.0,0.440627]
[1728399306926,0.379826,62658.0,62657.0,0.3608]
[1728399308029,0.079823,62660.0,62659.0,0.079824]
[1728399308623,0.079828,62656.0,62655.0,0.079829]
[1728399308824,0.3,62656.0,62655.0,0.079829]
[1728399309025,0.079826,62658.0,62657.0,0.079824]
[1728399309231,0.07983,62655.0,62654.0,0.0822249]
[1728399309528,0.079826,62659.0,62658.0,0.079824]
[1728399309728,0.079826,62659.0,62658.0,0.50428556]
[1728399309927,0.079826,62659.0,62658.0,0.340624]
[1728399310125,0.079826,62659.0,62658.0,0.079824]
[1728399310630,0.079826,62659.0,62658.0,0.1434696]
[1728399310827,0.079826,62659.0,62658.0,0.14346835]
[1728399311022,0.079826,62659.0,62658.0,0.50426835]
[1728399311229,0.3608,62683.0,62658.0,1.4396]
[1728399311423,0.3608,62683.0,62671.0,0.440609]
[1728399311424,0.079805,62674.0,62671.0,0.440609]
[1728399311630,0.3608,62683.0,62671.0,0.440609]
[1728399311631,0.079802,62677.0,62671.0,0.440609]
[1728399311822,0.079798,62680.0,62671.0,0.440609]
[1728399312023,0.02802473,62684.0,62671.0,0.440609]
[1728399312220,0.079794,62684.0,62683.0,0.079794]
[1728399312423,0.0539,62688.0,62682.0,0.3608]
[1728399312424,0.3608,62689.0,62687.0,0.079788]
[1728399312631,0.079788,62688.0,62687.0,0.12749896]
[1728399312828,0.079788,62688.0,62687.0,0.079788]
[1728399313430,0.3608,62689.0,62685.0,0.06362387]
[1728399313729,0.00239357,62695.0,62688.0,0.04770267]
[1728399313933,0.00239357,62695.0,62692.0,0.079781]
[1728399314247,0.079781,62693.0,62692.0,0.079781]
[1728399315026,0.3,62693.0,62689.0,0.04770267]
[1728399315332,0.079786,62689.0,62688.0,0.12748867]
[1728399315522,0.079788,62688.0,62687.0,0.04768678]
[1728399315718,0.3,62687.0,62686.0,0.04768728]
[1728399315919,0.07979,62686.0,62685.0,0.12747821]
[1728399316123,0.07979,62686.0,62685.0,0.079791]
[1728399316635,0.07979,62686.0,62685.0,0.12747324]
[1728399316829,0.07979,62686.0,62685.0,0.079791]
[1728399317331,0.07979,62686.0,62685.0,0.081791]
[1728399317528,0.07979,62686.0,62685.0,0.12946912]
[1728399318331,0.07979,62686.0,62685.0,0.081791]
[1728399318837,0.07979,62686.0,62685.0,0.002]
[1728399319339,0.13149,62686.0,62685.0,0.002]
[1728399319940,0.13149,62686.0,62679.0,0.3608]
[1728399319941,0.13149,62686.0,62683.0,0.079793]
[1728399320130,0.13149,62686.0,62685.0,0.003]
[1728399320833,0.13349,62686.0,62681.0,0.079796]
[1728399321140,0.079795,62682.0,62681.0,0.079796]
[1728399321838,0.079795,62682.0,62681.0,0.081796]
[1728399324137,0.379773,62700.0,62681.0,0.302]
[1728399324337,0.0558,62699.0,62692.0,0.3608]
[1728399324540,0.079777,62697.0,62694.0,0.07978]
[1728399324934,0.0527,62703.0,62694.0,0.07978]
[1728399325229,0.3234,62704.0,62694.0,0.07978]
[1728399325531,0.00639357,62695.0,62694.0,0.07978]
[1728399327427,0.00839357,62695.0,62694.0,0.08078]
[1728399329340,0.00839357,62695.0,62694.0,0.10885008]
[1728399329938,0.08817257,62695.0,62694.0,0.10885008]
[1728399330133,0.08817257,62695.0,62694.0,0.08078]
[1728399330335,0.38817257,62695.0,62694.0,0.001]
[1728399330738,0.00839357,62695.0,62694.0,0.08078]
[1728399331941,0.079763,62708.0,62706.0,0.079763]
[1728399332138,0.07977,62704.0,62703.0,0.079766]
[1728399332641,0.07977,62704.0,62701.0,0.3608]
[1728399332642,0.079779,62697.0,62696.0,0.079776]
[1728399332852,0.379779,62697.0,62696.0,0.079776]
[1728399334046,0.079779,62697.0,62696.0,0.079776]
[1728399335441,0.079779,62697.0,62696.0,0.080776]
[1728399335750,0.086779,62697.0,62696.0,0.080776]
[1728399342654,0.007,62697.0,62696.0,0.080776]
[1728399342854,0.007,62697.0,62696.0,0.139576]
[1728399344459,0.007,62697.0,62696.0,0.18731843]
[1728399345353,0.007,62697.0,62696.0,0.139576]
[1728399345557,0.079755,62714.0,62696.0,1.218056]
[1728399345755,0.44055,62718.0,62712.0,0.079757]
[1728399345756,0.079759,62713.0,62712.0,0.079757]
[1728399346454,0.079752,62719.0,62718.0,0.079748]
[1728399348056,0.079752,62719.0,62718.0,0.080748]
[1728399348057,0.086752,62719.0,62718.0,0.080748]
[1728399348357,0.086752,62719.0,62718.0,0.10846934]
[1728399349959,0.007,62719.0,62718.0,0.10846934]
[1728399350461,0.006,62719.0,62718.0,0.10746934]
[1728399351262,0.279734,62731.0,62719.0,0.079748]
[1728399351263,0.2,62731.0,62719.0,0.079748]
[1728399351457,0.279723,62739.0,62719.0,0.67832]
[1728399351658,0.279723,62739.0,62732.0,0.07973]
[1728399351659,0.079731,62733.0,62732.0,0.07973]
[1728399352162,0.079733,62731.0,62730.0,0.3608]
[1728399352369,0.279733,62731.0,62730.0,0.3608]
[1728399353156,0.2,62731.0,62726.0,0.3608]
[1728399353459,0.279738,62727.0,62726.0,0.3608]
[1728399354062,0.279738,62727.0,62716.0,0.3608]
[1728399354063,0.079746,62721.0,62716.0,0.3608]
[1728399354262,0.279751,62717.0,62716.0,0.3608]
[1728399354457,0.079751,62717.0,62716.0,0.3608]
[1728399355661,0.080751,62717.0,62716.0,0.3678]
[1728399356665,0.080751,62717.0,62704.0,0.3608]
[1728399356866,0.080751,62717.0,62705.0,0.079765]
[1728399356867,0.079766,62706.0,62705.0,0.079765]
[1728399357067,0.3,62707.0,62704.0,0.3608]
[1728399357068,0.079766,62705.0,62704.0,0.3608]
[1728399357365,0.198966,62705.0,62704.0,0.3608]
[1728399357870,0.198966,62705.0,62704.0,0.3708]
[1728399358069,0.139266,62705.0,62704.0,0.3708]
[1728399358369,0.079762,62708.0,62707.0,0.079762]
[1728399359562,0.079762,62708.0,62704.0,0.440565]
[1728399359563,0.079766,62705.0,62704.0,0.440565]
[1728399360460,0.3595,62712.0,62704.0,0.3608]
[1728399360664,0.079763,62709.0,62708.0,0.07976]
[1728399361165,0.0595,62712.0,62704.0,0.3628]
[1728399361372,0.139258,62712.0,62711.0,0.079758]
[1728399362566,0.079761,62709.0,62708.0,0.080761]
[1728399362766,0.079761,62709.0,62708.0,0.001]
[1728399363366,0.0595,62712.0,62707.0,0.079763]
[1728399363668,0.079762,62708.0,62707.0,0.079763]
[1728399363868,0.079766,62705.0,62704.0,0.46786786]
[1728399364074,0.3616,62713.0,62704.0,0.46786786]
[1728399364075,0.36399258,62721.0,62715.0,0.079753]
[1728399364280,0.00239258,62721.0,62720.0,0.079747]
[1728399364479,0.00239258,62721.0,62720.0,0.379747]
[1728399365577,0.00239258,62721.0,62720.0,0.079747]
[1728399366778,0.00239258,62721.0,62720.0,0.10819577]
[1728399368385,0.079744,62723.0,62722.0,0.079742]
[1728399368590,0.079744,62723.0,62720.0,0.02844877]
[1728399368790,0.379746,62721.0,62720.0,0.079746]
[1728399369088,0.079751,62718.0,62717.0,0.07975]
[1728399369404,0.079751,62717.0,62716.0,0.3608]
[1728399369587,0.193451,62717.0,62716.0,0.3608]
[1728399370591,0.198451,62717.0,62716.0,0.3608]
[1728399370789,0.005,62717.0,62716.0,0.440552]
[1728399372198,0.005,62717.0,62716.0,0.740552]
[1728399372389,0.005,62717.0,62716.0,0.440552]
[1728399373290,0.079741,62725.0,62724.0,0.079742]
[1728399373798,0.079741,62725.0,62716.0,0.443552]
[1728399373799,0.079751,62717.0,62716.0,0.082751]
[1728399374100,0.079751,62717.0,62716.0,0.083751]
[1728399374595,0.079751,62717.0,62716.0,0.004]
[1728399376487,0.1077393,62717.0,62716.0,0.004]
[1728399378302,0.079761,62710.0,62709.0,0.07976]
[1728399379000,0.079742,62724.0,62722.0,0.079744]
[1728399379300,0.51928106,62735.0,62722.0,0.079744]
[1728399379301,0.079737,62728.0,62722.0,0.079744]
[1728399379796,0.02816686,62731.0,62722.0,0.079744]
[1728399379797,0.079738,62727.0,62722.0,0.079744]
[1728399380293,0.079731,62733.0,62722.0,0.079744]
[1728399380493,0.079739,62727.0,62722.0,0.079744]
[1728399380894,0.00439241,62723.0,62722.0,0.079744]
[1728399381905,0.00439241,62723.0,62722.0,0.10777053]
[1728399382791,0.07973,62734.0,62722.0,0.10777053]
[1728399382792,0.07973,62734.0,62733.0,0.07973]
[1728399384004,0.09273,62734.0,62733.0,0.08073]
[1728399384593,0.09273,62734.0,62733.0,0.001]
[1728399384800,0.37273,62734.0,62733.0,0.001]
[1728399385108,0.85093,62734.0,62733.0,0.001]
[1728399385605,0.37273,62734.0,62733.0,0.001]
[1728399385998,0.09273,62734.0,62733.0,0.001]
[1728399386897,0.09273,62734.0,62733.0,0.08073]
[1728399386898,0.013,62734.0,62733.0,0.08073]
[1728399387403,0.092729,62734.0,62733.0,0.08073]
[1728399388200,0.372729,62734.0,62733.0,0.001]
[1728399388397,1.450929,62734.0,62733.0,0.001]
[1728399388700,0.092729,62734.0,62733.0,0.001]
[1728399389895,1.3712,62734.0,62721.0,0.3608]
[1728399390201,0.079744,62724.0,62723.0,0.079743]
[1728399391101,0.079744,62722.0,62721.0,0.440546]
[1728399391613,0.079747,62720.0,62719.0,0.440547]
[1728399392504,0.15848106,62736.0,62719.0,0.440547]
[1728399392505,0.001,62734.0,62719.0,0.7216]
[1728399392697,0.079732,62732.0,62731.0,0.07973]
[1728399393104,0.079732,62732.0,62728.0,0.3608]
[1728399393105,0.079735,62729.0,62728.0,0.440536]
[1728399393305,0.079732,62732.0,62719.0,0.3608]
[1728399393612,0.6408,62734.0,62727.0,0.079738]
[1728399393613,0.079739,62728.0,62727.0,0.079738]
[1728399393910,0.079743,62724.0,62723.0,0.079741]
[1728399395519,0.079747,62722.0,62721.0,0.079745]
[1728399396304,0.079741,62727.0,62726.0,0.079739]
[1728399398405,0.079741,62727.0,62726.0,0.10697369]
[1728399399708,0.085741,62727.0,62726.0,0.10797369]
[1728399402003,0.006,62727.0,62726.0,0.10797369]
[1728399402204,0.006,62727.0,62726.0,0.22107369]
[1728399404314,0.079725,62738.0,62737.0,0.079725]
[1728399405509,0.093725,62738.0,62737.0,0.080725]
[1728399406218,0.093725,62738.0,62737.0,0.001]
[1728399407808,0.093725,62738.0,62737.0,0.002]
[1728399407809,0.107725,62738.0,62737.0,0.002]
[1728399409921,0.107725,62738.0,62737.0,0.081725]
[1728399410417,0.107725,62738.0,62737.0,0.261725]
[1728399411313,0.107725,62738.0,62737.0,0.002]
[1728399412423,0.107725,62738.0,62737.0,0.081725]
[1728399412609,0.107725,62738.0,62737.0,0.261725]
[1728399413323,0.107725,62738.0,62737.0,0.252325]
[1728399413914,0.028,62738.0,62737.0,0.252325]
[1728399417025,0.107724,62738.0,62737.0,0.252325]
[1728399417432,0.028,62738.0,62737.0,0.252325]
[1728399418515,0.107724,62738.0,62737.0,0.252325]
[1728399418716,0.028,62738.0,62737.0,0.252325]
[1728399420625,0.028,62738.0,62737.0,1.330525]
[1728399422233,0.08210463,62747.0,62746.0,0.079714]
[1728399422922,0.08210463,62747.0,62744.0,0.417]
[1728399422923,0.079715,62745.0,62744.0,0.3608]
[1728399424235,0.081715,62745.0,62744.0,0.3618]
[1728399424835,0.081715,62745.0,62744.0,0.001]
[1728399424836,1.520635,62745.0,62744.0,0.001]
[1728399425333,1.520635,62745.0,62744.0,0.002]
[1728399425535,0.442515,62745.0,62744.0,0.002]
[1728399426123,0.47026943,62745.0,62744.0,0.002]
[1728399426329,0.10946943,62745.0,62744.0,0.002]
[1728399426523,0.081715,62745.0,62744.0,0.081716]
[1728399427333,0.002,62745.0,62744.0,0.081716]
[1728399427541,0.002,62745.0,62744.0,0.10982192]
[1728399429431,0.002,62745.0,62744.0,0.47062192]
[1728399429633,0.079703,62756.0,62755.0,0.0797]
[1728399429835,0.079703,62756.0,62755.0,0.2597]
[1728399430548,0.079699,62759.0,62758.0,0.079696]
[1728399430836,0.079693,62762.0,62755.0,0.18]
[1728399430837,0.079695,62762.0,62761.0,0.079693]
[1728399431041,0.079695,62762.0,62761.0,0.3608]
[1728399431231,0.079695,62762.0,62759.0,0.079697]
[1728399431432,0.079695,62762.0,62761.0,0.079695]
[1728399431745,0.079695,62762.0,62761.0,0.440495]
[1728399432345,0.079695,62762.0,62761.0,0.079695]
[1728399432739,0.0797,62759.0,62758.0,0.079698]
[1728399433538,0.079694,62762.0,62761.0,0.079693]
[1728399433944,0.0797,62759.0,62758.0,0.080698]
[1728399434443,0.0797,62759.0,62758.0,0.001]
[1728399435047,0.0797,62759.0,62758.0,0.079699]
[1728399435446,0.0598,62763.0,62758.0,0.259699]
[1728399435650,0.079696,62762.0,62761.0,0.440493]
[1728399436243,0.079696,62762.0,62761.0,0.079693]
[1728399436940,0.079697,62759.0,62758.0,0.260698]
[1728399437139,0.079697,62759.0,62758.0,0.079698]
[1728399438340,0.079697,62759.0,62758.0,0.080698]
[1728399439144,0.079697,62759.0,62758.0,0.001]
[1728399439551,0.079694,62762.0,62758.0,0.181]
[1728399439747,0.0584,62767.0,62764.0,0.079688]
[1728399439748,0.07969,62765.0,62764.0,0.079688]
[1728399440946,0.07969,62765.0,62764.0,0.080688]
[1728399442453,0.07969,62765.0,62764.0,0.002]
[1728399443251,0.07969,62765.0,62764.0,0.001]
[1728399443449,0.07969,62765.0,62764.0,0.002]
[1728399443841,0.07969,62765.0,62764.0,0.081691]
[1728399444047,0.07969,62765.0,62764.0,0.002]
[1728399444549,0.07969,62765.0,62764.0,0.081691]
[1728399445351,0.07969,62765.0,62764.0,0.002]
[1728399446649,0.079696,62760.0,62759.0,0.3608]
[1728399446844,0.079718,62744.0,62743.0,0.079716]
[1728399447042,0.18,62750.0,62738.0,0.0611]
[1728399447247,0.079718,62743.0,62742.0,0.02726316]
[1728399447449,0.18,62749.0,62737.0,0.5408]
[1728399447660,0.079719,62742.0,62741.0,0.079719]
[1728399448352,0.0585,62752.0,62741.0,0.18]
[1728399448548,0.079714,62746.0,62745.0,0.079714]
[1728399449159,0.079714,62746.0,62741.0,0.18]
[1728399449160,0.079719,62742.0,62741.0,0.259719]
[1728399449551,0.079719,62742.0,62741.0,0.260719]
[1728399450662,0.085719,62742.0,62741.0,0.261719]
[1728399451161,0.085719,62742.0,62741.0,0.081719]
[1728399451556,0.265719,62742.0,62741.0,0.002]